bitfinex/quotes_SOLUSD_20241110
["timestamp","ask_amount","ask_price","bid_price","bid_amount"]
[1731207367252,15.73344267,204.49,204.41,15.73344267]
[1731207367659,15.73344267,204.48,204.41,15.73344267]
[1731207368753,15.73344267,204.47,204.4,15.73344267]
[1731207369656,15.73344267,204.47,204.39,15.73344267]
[1731207369959,15.73344267,204.47,204.4,15.73344267]
[1731207370275,15.73344267,204.46,204.39,15.73344267]
[1731207370567,15.73344267,204.45,204.38,20.61244267]
[1731207370770,15.73344267,204.42,204.36,15.73344267]
[1731207370958,15.73344267,204.41,204.34,15.73344267]
[1731207371871,15.73344267,204.42,204.34,15.73344267]
[1731207372054,15.73344267,204.42,204.35,15.73344267]
[1731207372669,15.73344267,204.4,204.33,15.73344267]
[1731207372967,0.1,204.45,204.32,3.73865386]
[1731207372968,15.73344267,204.39,204.32,19.47209653]
[1731207373180,15.73344267,204.39,204.32,15.73344267]
[1731207373673,15.73344267,204.4,204.32,15.73344267]
[1731207374160,15.73344267,204.4,204.33,15.73344267]
[1731207374367,15.73344267,204.39,204.32,15.73344267]
[1731207374866,15.73344267,204.4,204.33,15.73344267]
[1731207376259,15.73344267,204.41,204.33,15.73344267]
[1731207376458,15.73344267,204.4,204.33,15.73344267]
[1731207376868,21.3416,204.47,204.39,15.73344267]
[1731207377066,21.3416,204.47,204.41,15.73344267]
[1731207377576,15.73344267,204.46,204.39,15.73344267]
[1731207377765,15.73344267,204.44,204.37,15.73344267]
[1731207378478,15.73344267,204.45,204.38,15.73344267]
[1731207378671,15.73344267,204.44,204.37,15.73344267]
[1731207379477,21.3416,204.47,204.36,15.73344267]
[1731207379478,15.73344267,204.43,204.36,15.73344267]
[1731207379872,15.73344267,204.44,204.37,15.73344267]
[1731207380574,15.73344267,204.43,204.36,15.73344267]
[1731207381367,15.73344267,204.44,204.37,15.73344267]
[1731207381682,21.3416,204.47,204.41,15.73344267]
[1731207381984,21.3416,204.47,204.42,15.73344267]
[1731207382157,21.3416,204.47,204.41,15.73344267]
[1731207382779,21.3416,204.47,204.4,20.61244267]
[1731207382958,37.07504267,204.47,204.4,20.61244267]
[1731207383273,15.73344267,204.46,204.4,4.879]
[1731207383875,15.73344267,204.46,204.39,4.879]
[1731207384868,15.73344267,204.44,204.36,20.61244267]
[1731207385069,15.73344267,204.43,204.36,20.61244267]
[1731207386974,15.73344267,204.44,204.36,20.61244267]
[1731207387176,15.73344267,204.4,204.3,3.6121385]
[1731207387365,15.73344267,204.39,204.32,15.73344267]
[1731207387564,15.73344267,204.4,204.33,15.73344267]
[1731207388366,15.73344267,204.41,204.34,15.73344267]
[1731207388562,15.73344267,204.42,204.34,15.73344267]
[1731207389374,15.73344267,204.4,204.28,20.0]
[1731207389579,15.73344267,204.39,204.31,15.73344267]
[1731207389885,15.73344267,204.4,204.32,15.73344267]
[1731207390689,15.73344267,204.4,204.33,15.73344267]
[1731207391865,15.73344267,204.41,204.33,15.73344267]
[1731207392370,15.73344267,204.4,204.32,15.73344267]
[1731207392572,15.73344267,204.4,204.33,15.73344267]
[1731207392778,15.73344267,204.41,204.34,15.73344267]
[1731207393177,15.73344267,204.41,204.33,15.73344267]
[1731207393382,15.73344267,204.4,204.33,15.73344267]
[1731207393985,15.73344267,204.39,204.32,4.879]
[1731207394907,15.73344267,204.38,204.3,20.61244267]
[1731207395410,42.26712375,204.46,204.33,15.73344267]
[1731207395411,15.73344267,204.4,204.33,15.73344267]
[1731207395704,15.73344267,204.44,204.37,15.73344267]
[1731207395905,21.3416,204.47,204.39,15.73344267]
[1731207396095,15.73344267,204.46,204.39,15.73344267]
[1731207396414,37.07504267,204.47,204.4,15.73344267]
[1731207396617,15.73344267,204.46,204.39,15.73344267]
[1731207396917,15.73344267,204.43,204.3,6.2749]
[1731207397091,21.3416,204.47,204.3,6.2749]
[1731207397092,15.73344267,204.42,204.35,15.73344267]
[1731207397286,15.73344267,204.4,204.28,5.18968361]
[1731207397531,15.73344267,204.4,204.32,15.73344267]
[1731207397715,15.73344267,204.39,204.32,15.73344267]
[1731207398013,15.73344267,204.4,204.32,15.73344267]
[1731207399309,15.73344267,204.38,204.31,15.73344267]
[1731207399521,15.73344267,204.4,204.33,15.73344267]
[1731207399809,15.73344267,204.39,204.31,15.73344267]
[1731207400110,15.73344267,204.41,204.34,15.73344267]
[1731207400415,15.73344267,204.4,204.32,20.61244267]
[1731207400912,15.73344267,204.41,204.33,15.73344267]
[1731207401115,15.73344267,204.41,204.34,15.73344267]
[1731207401317,15.73344267,204.41,204.32,20.61244267]
[1731207401522,15.73344267,204.39,204.32,20.61244267]
[1731207402907,15.73344267,204.39,204.32,15.73344267]
[1731207404309,15.73344267,204.39,204.28,8.9077673]
[1731207404625,15.73344267,204.39,204.3,15.73344267]
[1731207406234,15.73344267,204.39,204.32,15.73344267]
[1731207411534,10.10139725,204.39,204.32,10.10139725]
[1731207413619,23.776884,204.44,204.32,10.10139725]
[1731207413827,5.09196189,204.45,204.29,24.979]
[1731207414016,10.10139725,204.43,204.36,10.10139725]
[1731207414218,10.10139725,204.43,204.37,4.879]
[1731207414931,10.10139725,204.42,204.37,4.879]
[1731207415620,10.10139725,204.42,204.36,4.879]
[1731207416024,10.10139725,204.41,204.36,4.879]
[1731207416225,10.10139725,204.4,204.29,20.0]
[1731207416531,5.09196189,204.45,204.29,20.0]
[1731207416532,5.09196189,204.45,204.36,10.10139725]
[1731207416717,10.10139725,204.43,204.3,110.505589]
[1731207416916,10.10139725,204.43,204.36,10.10139725]
[1731207417322,10.10139725,204.42,204.37,4.879]
[1731207417515,10.10139725,204.42,204.36,4.879]
[1731207417728,10.10139725,204.42,204.3,0.1]
[1731207418035,10.10139725,204.41,204.34,10.10139725]
[1731207418238,10.10139725,204.37,204.28,8.8077673]
[1731207418427,10.10139725,204.37,204.3,10.10139725]
[1731207419213,10.10139725,204.37,204.31,4.879]
[1731207419715,10.10139725,204.37,204.28,8.8077673]
[1731207419923,10.10139725,204.37,204.3,10.10139725]
[1731207420224,10.10139725,204.37,204.28,8.8077673]
[1731207420421,10.10139725,204.36,204.29,10.10139725]
[1731207420923,10.10139725,204.36,204.28,8.8077673]
[1731207420924,10.10139725,204.35,204.28,8.8077673]
[1731207421132,6.2233,204.36,204.28,8.8077673]
[1731207421133,10.10139725,204.33,204.28,3.71808369]
[1731207421321,10.10139725,204.35,204.28,10.10139725]
[1731207421537,10.10139725,204.34,204.24,4.879]
[1731207421722,10.10139725,204.34,204.28,4.879]
[1731207422233,10.10139725,204.32,204.23,8.05084533]
[1731207422431,10.10139725,204.3,204.23,3.67214637]
[1731207422637,10.10139725,204.3,204.23,10.10139725]
[1731207422833,10.10139725,204.31,204.24,10.10139725]
[1731207423423,6.2233,204.36,204.16,6.5799]
[1731207423424,10.10139725,204.29,204.16,6.4799]
[1731207423622,23.776884,204.35,204.15,4.27984179]
[1731207423623,10.10139725,204.25,204.15,4.27984179]
[1731207423836,10.10139725,204.24,204.14,16.0772]
[1731207424043,10.10139725,204.24,204.17,10.10139725]
[1731207424337,16.72379,204.34,204.18,10.10139725]
[1731207424642,10.10139725,204.26,204.19,10.10139725]
[1731207424831,10.10139725,204.25,204.19,10.10139725]
[1731207425345,10.10139725,204.25,204.14,16.0772]
[1731207425346,15.8052205,204.24,204.17,15.8052205]
[1731207425842,15.8052205,204.3,204.14,19.73835342]
[1731207425843,15.8052205,204.23,204.14,19.73835342]
[1731207426028,15.8052205,204.23,204.16,15.8052205]
[1731207426337,15.8052205,204.24,204.17,15.8052205]
[1731207426549,15.8052205,204.23,204.17,15.8052205]
[1731207426834,15.8052205,204.21,204.14,19.46637392]
[1731207427043,15.8052205,204.2,204.14,3.66115342]
[1731207427237,15.8052205,204.2,204.14,15.8052205]
[1731207427556,15.8052205,204.21,204.15,15.8052205]
[1731207427736,16.3983,204.25,204.16,15.8052205]
[1731207427915,15.8052205,204.23,204.16,15.8052205]
[1731207428940,15.8052205,204.22,204.16,15.8052205]
[1731207429444,20.89886948,204.3,204.16,15.8052205]
[1731207429445,15.8052205,204.28,204.21,15.8052205]
[1731207429643,15.8052205,204.23,204.16,15.8052205]
[1731207429947,15.8052205,204.21,204.14,15.8052205]
[1731207430248,15.8052205,204.19,204.12,15.8052205]
[1731207430430,15.8052205,204.2,204.11,4.879]
[1731207430736,15.8052205,204.2,204.13,15.8052205]
[1731207431227,15.8052205,204.19,204.12,15.8052205]
[1731207431931,15.8052205,204.18,204.11,20.6842205]
[1731207432246,15.8052205,204.17,204.1,3.73879809]
[1731207432426,15.8052205,204.16,204.11,4.879]
[1731207432626,15.8052205,204.15,204.08,15.8052205]
[1731207433035,15.8052205,204.13,204.07,3.62590329]
[1731207433223,15.8052205,204.13,204.06,20.6842205]
[1731207433419,15.8052205,204.11,204.06,4.879]
[1731207434243,15.8052205,204.1,204.06,4.879]
[1731207434547,15.8052205,204.1,204.05,4.879]
[1731207435646,15.8052205,204.09,204.06,4.879]
[1731207436250,15.8052205,204.07,204.02,3.62565448]
[1731207436544,15.8052205,204.07,204.0,15.8052205]
[1731207437119,15.8052205,204.06,203.99,20.6842205]
[1731207437549,15.8052205,204.05,203.99,4.879]
[1731207438047,15.8052205,204.01,203.91,70.0]
[1731207438341,15.8052205,204.01,203.94,15.8052205]
[1731207438925,15.8052205,204.04,203.97,15.8052205]
[1731207439126,15.8052205,204.04,203.91,73.76416979]
[1731207439127,23.2564,204.15,204.03,15.8052205]
[1731207439329,15.8052205,204.12,204.05,15.8052205]
[1731207439641,2.1977,204.11,203.78,465.7668]
[1731207439829,244.51518507,203.79,203.45,0.36368958]
[1731207440023,15.8052205,204.02,203.42,23.30485816]
[1731207440024,244.61518507,203.63,203.42,23.30485816]
[1731207440268,0.1,203.49,203.16,24.06331061]
[1731207440546,0.1,203.41,203.11,6.1484]
[1731207440755,0.1,203.42,203.15,13.50149449]
[1731207440960,0.1,203.29,203.27,3.24]
[1731207441246,0.1,203.32,203.27,3.24]
[1731207441556,41.59014512,203.32,203.27,3.24]
[1731207441733,0.1,203.36,203.27,3.24]
[1731207442062,0.1,203.36,203.28,41.49014512]
[1731207442226,0.1,203.4,203.28,41.49014512]
[1731207442565,0.1,203.38,203.27,3.24]
[1731207442752,0.1,203.38,203.29,41.49014512]
[1731207442929,0.1,203.4,203.31,41.49014512]
[1731207443125,0.1,203.4,203.33,41.49014512]
[1731207443345,0.1,203.44,203.33,41.49014512]
[1731207443551,0.1,203.4,203.33,41.49014512]
[1731207444143,0.1,203.4,203.29,41.49014512]
[1731207444355,41.49014512,203.39,203.27,109.49572259]
[1731207444532,41.49014512,203.35,203.27,3.24]
[1731207444735,41.59014512,203.33,203.21,106.25572259]
[1731207444942,41.49014512,203.31,203.21,106.25572259]
[1731207445242,0.1,203.32,203.23,41.49014512]
[1731207445454,41.59014512,203.35,203.25,41.49014512]
[1731207445830,0.1,203.32,203.23,41.49014512]
[1731207446026,41.49014512,203.31,203.23,41.49014512]
[1731207446231,0.1,203.32,203.23,41.49014512]
[1731207446436,0.1,203.32,203.24,41.49014512]
[1731207447164,0.1,203.34,203.26,41.49014512]
[1731207447643,0.1,203.34,203.24,41.49014512]
[1731207447836,41.49014512,203.33,203.24,41.49014512]
[1731207448167,41.59014512,203.28,203.18,41.49014512]
[1731207448349,41.59014512,203.3,203.2,41.49014512]
[1731207448546,41.59014512,203.3,203.22,41.49014512]
[1731207448746,0.1,203.3,203.22,41.49014512]
[1731207448947,0.1,203.28,203.15,64.76557747]
[1731207449148,0.1,203.28,203.2,41.49014512]
[1731207449355,41.59014512,203.3,203.2,41.49014512]
[1731207449852,41.59014512,203.3,203.22,41.49014512]
[1731207450070,0.1,203.27,203.2,41.49014512]
[1731207450258,0.1,203.3,203.22,41.49014512]
[1731207451466,41.49014512,203.29,203.22,41.49014512]
[1731207452266,0.1,203.37,203.28,41.49014512]
[1731207452474,0.1,203.39,203.32,41.49014512]
[1731207452964,0.1,203.39,203.34,41.49014512]
[1731207453262,0.1,203.38,203.3,41.49014512]
[1731207453470,0.1,203.36,203.3,41.49014512]
[1731207453659,0.1,203.38,203.34,41.49014512]
[1731207453850,0.1,203.38,203.25,64.76557747]
[1731207453851,0.1,203.36,203.32,41.49014512]
[1731207454049,41.49014512,203.41,203.32,41.49014512]
[1731207454050,0.1,203.38,203.32,41.49014512]
[1731207454264,0.1,203.4,203.34,41.49014512]
[1731207454457,0.1,203.42,203.36,41.49014512]
[1731207454666,0.1,203.42,203.29,23.776884]
[1731207454854,0.1,203.44,203.38,41.49014512]
[1731207455169,0.1,203.42,203.36,41.49014512]
[1731207455346,0.1,203.44,203.36,41.49014512]
[1731207455547,0.1,203.42,203.36,41.49014512]
[1731207455752,0.1,203.38,203.24,64.76557747]
[1731207455963,0.1,203.35,203.28,41.49014512]
[1731207456152,0.1,203.35,203.2,106.25572259]
[1731207456153,0.1,203.35,203.3,41.49014512]
[1731207456655,0.1,203.32,203.17,24.89337616]
[1731207456853,0.1,203.26,203.23,41.49014512]
[1731207457058,41.49014512,203.24,203.1,0.1]
[1731207457364,41.49014512,203.24,203.17,41.49014512]
[1731207457365,0.1,203.23,203.17,41.49014512]
[1731207457590,0.1,203.2,203.11,6.1484]
[1731207457768,0.1,203.14,203.13,41.49014512]
[1731207458068,23.776884,203.19,203.01,6.0788]
[1731207458069,0.1,203.12,203.01,6.0788]
[1731207458247,0.1,203.1,203.07,41.49014512]
[1731207458446,0.1,203.16,203.09,41.49014512]
[1731207458646,0.1,203.13,203.01,6.0788]
[1731207458847,0.1,203.09,203.06,41.49014512]
[1731207459050,0.1,203.1,203.04,41.49014512]
[1731207459351,0.1,203.11,203.06,41.49014512]
[1731207459758,23.776884,203.13,203.06,41.49014512]
[1731207459759,0.1,203.09,203.06,41.49014512]
[1731207459959,0.1,203.11,203.08,41.49014512]
[1731207460148,0.1,203.09,203.06,41.49014512]
[1731207460349,23.776884,203.13,203.08,41.49014512]
[1731207460572,0.1,203.14,203.11,41.49014512]
[1731207460770,0.1,203.14,203.09,41.49014512]
[1731207460958,0.1,203.51,203.13,41.49014512]
[1731207461152,0.1,203.36,203.31,41.49014512]
[1731207461356,0.1,203.36,203.15,64.76557747]
[1731207461357,41.49014512,203.35,203.15,64.76557747]
[1731207461556,0.12549,203.3,203.22,41.49014512]
[1731207461879,41.49014512,203.31,203.22,41.49014512]
[1731207462178,0.12549,203.3,203.22,41.49014512]
[1731207462559,41.49014512,203.29,203.2,41.49014512]
[1731207462762,41.49014512,203.29,203.13,20.0]
[1731207462960,41.49014512,203.29,203.2,41.49014512]
[1731207463165,23.776884,203.28,203.2,41.49014512]
[1731207463367,23.776884,203.28,203.22,41.49014512]
[1731207463665,23.902374,203.3,203.22,41.49014512]
[1731207464065,24.002374,203.3,203.22,41.49014512]
[1731207464261,41.49014512,203.27,203.18,41.49014512]
[1731207464460,23.776884,203.26,203.18,41.49014512]
[1731207464655,14.65,203.39,203.13,4.879]
[1731207464656,0.1,203.41,203.25,41.49014512]
[1731207464975,0.1,203.41,203.2,41.49014512]
[1731207464976,41.49014512,203.41,203.32,41.49014512]
[1731207465179,0.12549,203.4,203.32,41.49014512]
[1731207465480,0.1,203.42,203.34,41.49014512]
[1731207465653,41.49014512,203.43,203.34,41.49014512]
[1731207465854,41.49014512,203.43,203.3,41.49014512]
[1731207466074,0.1,203.42,203.34,41.49014512]
[1731207466271,41.49014512,203.39,203.2,64.76557747]
[1731207466465,41.49014512,203.33,203.16,20.0]
[1731207466664,41.49014512,203.33,203.24,41.49014512]
[1731207467051,41.49014512,203.4,203.17,4.879]
[1731207467052,0.2,203.47,203.26,4.879]
[1731207467279,0.12549,203.41,203.34,41.49014512]
[1731207467763,41.59014512,203.42,203.35,41.49014512]
[1731207467970,41.49014512,203.42,203.35,41.49014512]
[1731207468264,41.59014512,203.42,203.33,41.49014512]
[1731207468470,41.59014512,203.42,203.27,41.49014512]
[1731207468471,41.49014512,203.36,203.27,41.49014512]
[1731207468875,41.49014512,203.38,203.29,41.49014512]
[1731207469080,41.49014512,203.4,203.31,41.49014512]
[1731207469286,23.776884,203.39,203.33,41.49014512]
[1731207469479,0.1,203.47,203.22,64.76557747]
[1731207469480,41.49014512,203.44,203.35,41.49014512]
[1731207469682,0.1,203.43,203.35,41.49014512]
[1731207469886,41.49014512,203.38,203.3,41.49014512]
[1731207470506,41.49014512,203.4,203.32,41.49014512]
[1731207470677,0.1,203.41,203.32,41.49014512]
[1731207470884,41.49014512,203.43,203.34,41.49014512]
[1731207471294,41.49014512,203.41,203.34,41.49014512]
[1731207471692,41.49014512,203.41,203.22,64.76557747]
[1731207471894,41.49014512,203.41,203.33,41.49014512]
[1731207472090,41.49014512,203.46,203.37,41.49014512]
[1731207472704,41.49014512,203.45,203.38,41.49014512]
[1731207472918,41.49014512,203.46,203.38,41.49014512]
[1731207473204,41.49014512,203.45,203.38,41.49014512]
[1731207473704,0.12549,203.49,203.37,41.49014512]
[1731207473899,0.12549,203.49,203.3,41.49014512]
[1731207473900,41.49014512,203.48,203.4,41.49014512]
[1731207474108,41.49014512,203.45,203.38,41.49014512]
[1731207474289,0.74241817,203.44,203.37,41.49014512]
[1731207474798,0.74241817,203.44,203.36,41.49014512]
[1731207475103,23.776884,203.4,203.34,20.0]
[1731207475296,23.776884,203.38,203.31,41.49014512]
[1731207475600,23.776884,203.32,203.12,6.2749]
[1731207475782,65.26702912,203.25,203.18,41.49014512]
[1731207475979,23.776884,203.23,203.17,41.49014512]
[1731207476197,0.74241817,203.22,203.17,41.49014512]
[1731207477200,0.74241817,203.22,203.21,41.49014512]
[1731207479112,0.74241817,203.22,203.19,41.49014512]
[1731207480088,0.74241817,203.22,203.2,41.49014512]
[1731207480593,0.74241817,203.22,203.19,41.49014512]
[1731207481114,0.74241817,203.22,203.17,41.49014512]
[1731207481411,0.74241817,203.22,203.12,6.2749]
[1731207481412,41.49014512,203.2,203.12,47.76504512]
[1731207481621,0.74241817,203.19,203.14,41.49014512]
[1731207481796,65.26702912,203.18,203.1,41.49014512]
[1731207482111,0.74241817,203.17,203.1,41.49014512]
[1731207482514,0.74241817,203.17,203.08,41.49014512]
[1731207482515,41.49014512,203.16,203.08,41.49014512]
[1731207482697,41.49014512,203.14,203.06,41.49014512]
[1731207482901,41.49014512,203.12,203.04,41.49014512]
[1731207483094,0.74241817,203.11,203.04,41.49014512]
[1731207483409,41.49014512,203.1,203.02,46.36914512]
[1731207483709,0.74241817,203.09,203.02,46.36914512]
[1731207483935,0.74241817,203.09,203.04,41.49014512]
[1731207484299,0.74241817,203.09,203.05,20.0]
[1731207484621,41.49014512,203.07,202.99,41.49014512]
[1731207484811,0.74241817,203.06,202.99,41.49014512]
[1731207485311,0.74241817,203.06,202.97,41.49014512]
[1731207485511,0.74241817,203.06,202.91,0.1]
[1731207485512,41.49014512,203.04,202.91,0.1]
[1731207485719,0.74241817,203.03,202.95,41.49014512]
[1731207485905,23.776884,203.02,202.95,41.49014512]
[1731207486111,0.74241817,203.01,202.95,41.49014512]
[1731207487821,0.74241817,203.01,202.87,0.1]
[1731207487822,0.74241817,203.01,202.93,41.49014512]
[1731207488128,0.74241817,203.01,202.84,0.1]
[1731207488129,0.74241817,203.01,202.98,20.0]
[1731207488922,41.49014512,203.0,202.93,41.49014512]
[1731207489114,0.74241817,202.99,202.93,41.49014512]
[1731207489509,0.74241817,202.99,202.97,41.49014512]
[1731207489712,0.74241817,202.99,202.91,0.1]
[1731207489713,41.49014512,203.07,202.98,41.49014512]
[1731207489906,41.49014512,203.05,202.98,41.49014512]
[1731207490126,41.49014512,203.05,202.99,20.0]
[1731207490333,41.49014512,203.05,202.97,20.0]
[1731207491323,41.49014512,203.03,202.95,20.0]
[1731207491530,41.49014512,203.07,203.0,20.0]
[1731207491825,41.49014512,203.05,203.0,20.0]
[1731207492323,41.49014512,203.05,202.96,20.0]
[1731207492518,41.49014512,203.05,202.98,20.0]
[1731207492713,41.49014512,203.15,203.05,20.0]
[1731207492918,41.49014512,203.13,203.05,20.0]
[1731207493229,41.49014512,203.11,203.03,20.0]
[1731207494427,41.49014512,203.06,203.01,20.0]
[1731207494808,41.49014512,203.04,203.01,20.0]
[1731207495011,41.49014512,203.02,202.93,41.49014512]
[1731207495912,41.49014512,203.0,202.93,41.49014512]
[1731207496217,23.776884,203.01,202.93,41.49014512]
[1731207496606,41.49014512,203.0,202.93,41.49014512]
[1731207497027,41.49014512,203.0,202.94,4.879]
[1731207497530,41.49014512,203.0,202.94,24.879]
[1731207497707,41.49014512,203.0,202.92,20.0]
[1731207498110,41.49014512,202.98,202.91,41.49014512]
[1731207498432,23.776884,203.01,202.93,41.49014512]
[1731207498816,23.776884,203.03,202.95,41.49014512]
[1731207499028,41.49014512,203.08,202.99,41.49014512]
[1731207499331,41.49014512,203.1,203.01,41.49014512]
[1731207499536,41.49014512,203.1,203.02,20.0]
[1731207499710,41.49014512,203.06,202.98,20.0]
[1731207499920,41.49014512,203.04,202.98,20.0]
[1731207500645,14.65,203.15,202.97,41.49014512]
[1731207500646,41.49014512,203.06,202.97,41.49014512]
[1731207500925,41.49014512,203.04,202.95,41.49014512]
[1731207502037,41.49014512,203.02,202.95,41.49014512]
[1731207502340,41.49014512,203.0,202.93,41.49014512]
[1731207502653,41.49014512,203.0,202.92,41.49014512]
[1731207502832,41.49014512,203.0,202.86,23.776884]
[1731207503017,41.49014512,202.96,202.88,41.49014512]
[1731207503530,41.49014512,202.94,202.83,6.4033]
[1731207503839,41.49014512,202.98,202.9,41.49014512]
[1731207504214,41.49014512,203.0,202.92,41.49014512]
[1731207505619,41.49014512,202.93,202.84,41.49014512]
[1731207505808,41.49014512,202.85,202.76,6.4033]
[1731207506011,41.49014512,202.9,202.76,6.4033]
[1731207506012,41.49014512,202.83,202.76,6.4033]
[1731207506425,23.776884,202.92,202.78,41.49014512]
[1731207506633,41.49014512,202.87,202.78,41.49014512]
[1731207507023,41.49014512,202.87,202.8,40.99014512]
[1731207507411,41.49014512,202.87,202.76,6.4033]
[1731207507412,41.49014512,202.85,202.76,47.89344512]
[1731207507614,41.49014512,202.81,202.76,6.4033]
[1731207507810,41.49014512,202.77,202.62,64.96557747]
[1731207508143,41.49014512,202.77,202.7,41.49014512]
[1731207508315,41.49014512,202.79,202.7,41.49014512]
[1731207508627,41.49014512,202.81,202.74,41.49014512]
[1731207509238,41.49014512,202.77,202.69,41.49014512]
[1731207509918,23.976884,202.88,202.62,64.86557747]
[1731207509919,41.49014512,202.75,202.67,41.49014512]
[1731207510538,41.49014512,202.79,202.71,41.49014512]
[1731207510724,41.49014512,202.81,202.73,41.49014512]
[1731207510920,41.49014512,202.81,202.73,40.99014512]
[1731207511426,41.49014512,202.79,202.71,41.49014512]
[1731207512247,41.49014512,202.79,202.72,4.879]
[1731207512421,41.49014512,202.77,202.72,4.879]
[1731207512735,41.49014512,202.77,202.67,41.49014512]
[1731207513236,41.49014512,202.75,202.67,41.49014512]
[1731207513756,41.49014512,202.73,202.65,41.49014512]
[1731207514229,41.49014512,202.71,202.63,41.49014512]
[1731207514435,41.49014512,202.69,202.61,47.89344512]
[1731207514639,41.49014512,202.69,202.62,4.925]
[1731207515019,41.49014512,202.68,202.62,4.925]
[1731207515344,0.12549,202.79,202.61,47.89344512]
[1731207515345,41.49014512,202.66,202.61,6.4033]
[1731207515722,41.49014512,202.67,202.61,6.4033]
[1731207515943,41.49014512,202.66,202.61,6.4033]
[1731207516144,41.49014512,202.65,202.61,6.4033]
[1731207516638,41.49014512,202.65,202.57,41.49014512]
[1731207517024,41.49014512,202.65,202.58,41.49014512]
[1731207517224,41.49014512,202.65,202.57,41.49014512]
[1731207517629,41.49014512,202.7,202.47,6.3429]
[1731207517630,0.12549,202.58,202.47,6.3429]
[1731207517830,41.49014512,202.55,202.47,47.83304512]
[1731207518038,41.49014512,202.55,202.48,41.49014512]
[1731207518923,41.49014512,202.57,202.48,41.49014512]
[1731207519238,41.49014512,202.55,202.48,41.49014512]
[1731207519537,41.49014512,202.61,202.52,41.49014512]
[1731207519744,41.49014512,202.61,202.52,41.59014512]
[1731207519926,41.49014512,202.61,202.54,41.49014512]
[1731207520246,41.49014512,202.63,202.54,41.49014512]
[1731207520449,41.49014512,202.63,202.54,0.1]
[1731207520740,41.49014512,202.63,202.56,41.49014512]
[1731207520945,41.49014512,202.65,202.56,41.49014512]
[1731207521330,41.49014512,202.65,202.56,41.59014512]
[1731207521541,0.1,202.75,202.5,70.29202912]
[1731207521542,15.9779,202.82,202.64,41.49014512]
[1731207521841,41.49014512,202.72,202.65,41.49014512]
[1731207522240,41.49014512,202.76,202.67,41.49014512]
[1731207522556,0.84392207,202.82,202.62,6.3429]
[1731207522557,41.49014512,202.71,202.63,4.925]
[1731207522755,41.49014512,202.71,202.62,6.3429]
[1731207523151,41.49014512,202.74,202.65,41.49014512]
[1731207523355,41.49014512,202.72,202.56,23.776884]
[1731207523652,41.49014512,202.7,202.62,41.49014512]
[1731207523857,41.49014512,202.72,202.64,41.49014512]
[1731207524341,41.49014512,202.72,202.57,5.025]
[1731207524342,41.49014512,202.74,202.66,41.49014512]
[1731207525175,41.49014512,202.72,202.55,71.20847747]
[1731207525343,41.49014512,202.72,202.63,41.49014512]
[1731207526335,23.776884,202.71,202.63,41.49014512]
[1731207526544,41.49014512,202.72,202.63,41.49014512]
[1731207526840,41.49014512,202.72,202.65,41.49014512]
[1731207527361,41.49014512,202.74,202.67,41.49014512]
[1731207527545,41.49014512,202.76,202.69,41.49014512]
[1731207527745,41.49014512,202.8,202.71,41.49014512]
[1731207529267,41.49014512,202.78,202.71,41.49014512]
[1731207529870,41.49014512,202.8,202.71,41.49014512]
[1731207530559,41.49014512,202.78,202.71,41.49014512]
[1731207531058,41.49014512,202.8,202.73,41.49014512]
[1731207531368,41.49014512,202.83,202.75,41.49014512]
[1731207531944,41.49014512,202.84,202.75,41.49014512]
[1731207532254,41.49014512,202.84,202.77,41.49014512]
[1731207532954,41.49014512,202.84,202.71,0.1]
[1731207532955,41.49014512,202.82,202.75,41.49014512]
[1731207533159,41.49014512,202.82,202.74,41.49014512]
[1731207533345,41.49014512,202.81,202.74,41.49014512]
[1731207533658,41.49014512,202.77,202.69,112.59862259]
[1731207533868,41.49014512,202.77,202.7,23.776884]
[1731207534042,41.49014512,202.74,202.69,6.3429]
[1731207534248,41.49014512,202.71,202.69,6.3429]
[1731207535055,41.49014512,202.7,202.63,21.8317]
[1731207535257,41.49014512,202.69,202.63,21.8317]
[1731207535762,41.49014512,202.7,202.63,21.8317]
[1731207536062,41.49014512,202.72,202.64,41.49014512]
[1731207536272,41.49014512,202.7,202.63,6.6156]
[1731207537572,41.49014512,202.7,202.63,48.10574512]
[1731207538260,41.49014512,202.68,202.63,6.6156]
[1731207539059,41.49014512,202.67,202.63,6.6156]
[1731207539366,41.49014512,202.65,202.63,6.6156]
[1731207541977,41.49014512,202.66,202.63,6.6156]
[1731207542173,41.49014512,202.65,202.63,6.6156]
[1731207543779,41.49014512,202.67,202.63,6.6156]
[1731207544080,0.1,202.77,202.63,6.6156]